bitfinex/quotes_ETHUSD_20251217
["timestamp","ask_amount","ask_price","bid_price","bid_amount"]
[1765951968763,4.05382414,2944.9,2944.5,0.002]
[1765951969861,0.001,2944.9,2944.8,0.4818]
[1765951970058,0.001,2944.9,2944.6,0.01027714]
[1765951970059,0.4939,2944.9,2944.6,0.01027714]
[1765951970841,0.4939,2944.9,2944.6,0.47607714]
[1765951971042,0.001,2944.9,2944.6,0.47607714]
[1765951971446,0.001,2944.9,2944.8,0.4818]
[1765951971646,0.001,2944.9,2944.5,0.4678]
[1765951971647,3.88960104,2944.9,2944.5,0.4678]
[1765951971842,3.88960104,2944.9,2944.5,0.002]
[1765951971843,4.07830104,2944.9,2944.5,0.002]
[1765951972040,0.4929,2944.6,2944.5,0.002]
[1765951972360,0.4684,2944.8,2944.5,0.002]
[1765951973167,3.86427718,2944.8,2944.5,0.002]
[1765951973459,0.4929,2944.6,2944.5,0.002]
[1765951973653,0.9613,2944.6,2944.5,0.002]
[1765951973853,0.4929,2944.6,2944.5,0.002]
[1765951974433,0.9613,2944.6,2944.5,0.002]
[1765951975156,0.4929,2944.6,2944.5,0.002]
[1765951975468,4.357347,2944.6,2944.5,0.002]
[1765951975856,0.9613,2944.6,2944.5,0.002]
[1765951976253,0.4684,2944.8,2944.7,0.4818]
[1765951976459,0.9613,2944.8,2944.5,0.002]
[1765951977266,0.225,2944.6,2944.5,0.002]
[1765951977437,0.4684,2944.8,2944.5,0.4838]
[1765951978173,0.9613,2944.6,2944.5,0.002]
[1765951978363,0.6934,2944.4,2944.3,0.002]
[1765951978558,5.44636534,2944.4,2944.3,0.002]
[1765951979281,8.84264301,2944.4,2944.3,0.002]
[1765951979459,0.4902,2943.7,2943.6,0.002]
[1765951979648,3.86467767,2944.4,2943.6,0.4838]
[1765951979850,3.39619159,2944.5,2943.7,0.47607714]
[1765951980168,3.39619159,2944.5,2943.9,0.47607714]
[1765951980372,3.39605227,2944.6,2943.9,0.4658]
[1765951980673,3.86435164,2944.7,2943.9,1.0048]
[1765951981241,3.86435164,2944.7,2944.1,0.0561]
[1765951981442,6.79190328,2944.7,2944.2,0.39186391]
[1765951981650,0.4684,2944.6,2944.1,0.0561]
[1765951981853,0.4684,2944.5,2943.9,1.0208]
[1765951982143,0.4929,2944.0,2943.5,0.002]
[1765951982369,0.9613,2944.0,2943.6,0.541]
[1765951982673,0.2205,2943.7,2943.6,0.541]
[1765951982871,0.6889,2943.7,2943.6,0.541]
[1765951983077,0.2205,2943.7,2943.6,0.541]
[1765951983664,0.2205,2943.7,2943.6,0.002]
[1765951985343,0.7035,2943.7,2943.6,0.002]
[1765951985948,4.1005853,2943.7,2943.6,0.002]
[1765951986183,5.34451552,2943.7,2943.6,0.002]
[1765951987088,5.34451552,2943.7,2943.5,0.002]
[1765951987089,0.4757,2943.6,2943.5,0.002]
[1765951987291,5.71166534,2943.6,2943.5,0.002]
[1765951987588,0.9587,2943.6,2943.5,0.002]
[1765951987793,3.39677474,2944.0,2943.5,0.002]
[1765951987794,0.52041783,2944.9,2944.8,0.4956]
[1765951988111,0.001,2946.0,2945.9,0.1283]
[1765951988267,0.001,2946.0,2945.3,0.6683]
[1765951988453,0.483,2945.8,2945.3,0.541]
[1765951990156,0.483,2945.7,2944.9,3.39570104]
[1765951990363,0.483,2945.7,2944.9,6.79140208]
[1765951990564,0.483,2945.7,2944.9,3.39570104]
[1765951991150,0.483,2945.7,2944.9,6.79140208]
[1765951991354,0.483,2945.7,2944.9,3.39570104]
[1765951992284,0.483,2945.6,2944.9,3.39570104]
[1765951993184,0.483,2945.6,2944.9,6.79140208]
[1765951993386,0.483,2945.6,2944.9,3.39570104]
[1765951994262,0.483,2945.6,2944.9,6.79140208]
[1765951995089,0.483,2945.6,2944.9,3.39570104]
[1765951995386,3.87794198,2945.6,2944.9,3.39570104]
[1765951995595,3.87794198,2945.6,2944.8,0.541]
[1765951995596,1.1784,2944.9,2944.8,0.541]
[1765951995768,0.9807,2944.6,2944.5,0.002]
[1765951997792,0.4977,2944.6,2944.5,0.002]
[1765951997999,0.483,2944.8,2944.5,0.002]
[1765951998397,0.9807,2944.6,2944.5,0.002]
[1765951999688,4.376747,2944.6,2944.5,0.002]
[1765951999889,5.15400435,2944.6,2944.5,0.002]
[1765952001004,1.75795735,2944.6,2944.5,0.002]
[1765952001519,5.15400435,2944.6,2944.5,0.002]
[1765952005522,0.483,2944.5,2943.6,0.541]
[1765952005699,0.483,2944.3,2943.6,3.93819984]
[1765952006224,0.483,2944.3,2943.5,3.39926885]
[1765952007332,0.483,2944.3,2943.5,0.002]
[1765952007539,0.483,2944.1,2943.5,0.002]
[1765952007927,0.483,2944.1,2943.5,0.68210619]
[1765952009533,0.483,2944.5,2943.6,3.5245007]
[1765952009834,0.483,2944.3,2943.6,3.5245007]
[1765952010034,0.483,2944.3,2943.6,3.3972007]
[1765952011734,3.87946207,2944.3,2943.6,3.3972007]
[1765952011904,0.483,2944.2,2943.6,3.3972007]
[1765952013943,3.87951726,2944.2,2943.6,3.3972007]
[1765952014942,0.483,2944.2,2943.6,3.3972007]
[1765952018510,3.8603119,2944.7,2943.7,0.1273]
[1765952018713,1.0134,2944.6,2943.8,0.03396969]
[1765952018947,1.0134,2944.6,2943.8,0.1273]
[1765952019146,2.14687119,2944.6,2943.8,0.1273]
[1765952019649,0.4734,2944.5,2943.8,0.1273]
[1765952019814,0.4734,2944.5,2943.6,3.5245007]
[1765952020744,3.86967767,2944.4,2943.6,6.9217014]
[1765952020941,3.86967767,2944.4,2943.7,0.1273]
[1765952021141,0.4734,2944.4,2943.7,0.74739785]
[1765952021441,3.39620701,2944.5,2943.8,0.1273]
[1765952022138,3.86960701,2944.5,2943.8,0.1273]
[1765952022735,3.86960701,2944.5,2943.8,3.52420054]
[1765952024847,0.4734,2944.4,2943.8,3.39690054]
[1765952025552,0.4734,2944.4,2943.8,3.52420054]
[1765952025923,6.461,2944.8,2944.7,0.1273]
[1765952026125,0.4714,2944.8,2944.1,0.1273]
[1765952026354,0.4734,2944.7,2944.1,0.1273]
[1765952026927,3.86936417,2944.7,2944.1,3.52388548]
[1765952027129,0.4734,2944.7,2944.2,0.74605438]
[1765952027550,0.001,2944.5,2944.4,0.1273]
[1765952032124,0.001,2944.5,2944.4,0.2546]
[1765952032328,0.001,2944.5,2944.4,9.81412798]
[1765952037863,0.001,2944.5,2944.4,9.8114407]
[1765952038064,0.001,2944.5,2944.4,12.15826152]
[1765952045063,0.001,2944.5,2944.4,12.16026152]
[1765952050475,0.001,2944.5,2944.4,7.40958272]
[1765952050686,0.001,2944.5,2944.4,9.8134407]
[1765952066492,0.001,2944.5,2944.4,5.0627619]
[1765952066795,0.001,2944.5,2944.4,9.8134407]
[1765952067091,0.001,2944.5,2944.4,5.0627619]
[1765952067291,0.001,2944.5,2944.4,9.4079367]
[1765952067478,0.001,2944.5,2944.4,4.5299579]
[1765952067985,0.001,2944.5,2944.4,4.6572579]
[1765952069971,0.001,2944.5,2944.4,6.85222533]
[1765952070272,0.001,2944.5,2944.4,6.81826256]
[1765952073396,0.001,2944.5,2944.4,4.06557767]
[1765952073774,0.001,2944.5,2944.4,4.19287767]
[1765952074884,0.001,2944.5,2944.4,8.95383361]
[1765952075923,0.001,2944.5,2944.4,4.06557767]
[1765952077841,0.001,2944.5,2944.4,4.19287767]
[1765952078017,0.001,2944.5,2944.4,5.43817705]
[1765952078932,0.001,2944.5,2944.4,10.65323608]
[1765952079633,0.001,2944.5,2944.4,5.90255728]
[1765952079802,0.001,2944.5,2944.4,6.30806128]
[1765952080010,0.001,2944.5,2944.4,5.90255728]
[1765952081545,0.001,2944.5,2944.4,5.89228014]
[1765952081752,0.001,2944.5,2944.4,6.30806128]
[1765952083109,0.001,2944.5,2944.4,6.25806128]
[1765952087952,0.001,2944.5,2944.4,10.87731357]
[1765952091044,0.001,2944.5,2944.4,6.25806128]
[1765952091242,0.001,2944.5,2944.4,5.85255728]
[1765952091458,0.001,2944.5,2944.4,5.88652005]
[1765952091953,0.001,2944.5,2944.4,5.85255728]
[1765952094166,0.001,2944.5,2944.4,5.88652005]
[1765952094739,0.001,2944.5,2944.4,6.29202405]
[1765952094960,0.001,2944.5,2944.4,11.00953612]
[1765952095334,0.001,2944.5,2944.4,6.25806128]
[1765952097073,0.001,2944.5,2944.4,10.41527553]
[1765952100164,0.001,2944.5,2944.4,9.82073089]
[1765952100565,0.001,2944.5,2944.4,26.35034572]
[1765952101169,0.001,2944.8,2944.7,0.560104]
[1765952101347,0.001,2944.8,2944.7,4.58715384]
[1765952101549,0.001,2944.8,2944.7,5.04586922]
[1765952102158,0.001,2944.8,2944.7,8.44180089]
[1765952102468,0.001,2944.8,2944.7,8.45207803]
[1765952103764,0.001,2944.8,2944.7,12.01474764]
[1765952104540,0.001,2944.8,2944.7,8.45207803]
[1765952105354,0.001,2944.8,2944.7,12.01474764]
[1765952106843,0.001,2945.7,2945.6,0.1546]
[1765952107039,0.001,2945.7,2945.6,0.6936]
[1765952108475,0.001,2945.7,2945.6,4.08849407]
[1765952108672,0.001,2945.7,2945.6,4.01119407]
[1765952108875,0.4699,2945.7,2945.1,0.01027714]
[1765952109085,0.9652,2945.7,2945.4,3.39509876]
[1765952109249,0.4699,2945.7,2945.6,3.39489407]
[1765952109445,0.001,2945.7,2945.6,3.47219407]
[1765952109763,0.001,2945.7,2945.6,0.0773]
[1765952109958,0.4699,2945.7,2945.5,3.39496696]
[1765952111555,0.4699,2945.7,2945.4,3.3951246]
[1765952111868,0.4699,2945.7,2945.4,6.7902492]
[1765952111869,0.001,2945.7,2945.4,6.7902492]
[1765952113081,0.001,2945.7,2945.6,0.0773]
[1765952113299,0.001,2945.7,2945.6,0.72754894]
[1765952113486,0.001,2945.7,2945.6,0.6936]
[1765952114290,0.001,2945.7,2945.6,4.08849407]
[1765952117614,0.9652,2945.7,2945.4,3.39511749]
[1765952117780,0.4953,2945.6,2945.3,3.39516807]
[1765952118099,0.4963,2945.7,2945.2,3.39533565]
[1765952118297,0.001,2945.7,2945.2,6.8679908]
[1765952118704,0.85593804,2945.7,2945.1,3.93443295]
[1765952118867,0.4953,2945.6,2945.1,3.39543047]
[1765952119668,0.85593804,2945.7,2945.1,3.47273047]
[1765952119877,0.4963,2945.7,2945.1,3.47273047]
[1765952120078,3.39489743,2945.6,2945.1,3.39543047]
[1765952120298,0.4953,2945.5,2945.1,3.39543047]
[1765952121004,0.001,2945.7,2945.1,3.39543047]
[1765952121210,3.89110478,2945.7,2945.1,3.39543047]
[1765952121408,0.88451048,2945.6,2945.1,3.39543047]
[1765952121711,0.4953,2945.5,2945.0,3.93453242]
[1765952122970,0.4689,2945.1,2945.0,3.93453242]
[1765952123608,0.4953,2945.3,2945.0,3.93453242]
[1765952125587,0.4953,2945.3,2945.0,0.539]
[1765952125798,0.4689,2945.1,2945.0,3.93458573]
[1765952126295,0.4689,2945.1,2945.0,3.39558573]
[1765952127303,0.4953,2945.3,2945.0,3.47288573]
[1765952127894,0.001,2945.5,2945.1,0.0773]
[1765952128333,0.001,2945.5,2945.4,0.0773]
[1765952128621,0.9652,2945.5,2945.0,6.79117146]
[1765952129019,0.9652,2945.5,2945.0,6.86847146]
[1765952130103,0.9652,2945.5,2945.0,3.47288573]
[1765952131130,0.4953,2945.4,2945.0,3.39558573]
[1765952131307,0.4953,2945.4,2945.0,6.79117146]
[1765952131510,0.93239879,2945.5,2945.3,0.0773]
[1765952131709,0.4689,2945.4,2945.0,6.86847146]
[1765952132557,0.001,2945.5,2945.3,0.0773]
[1765952133162,0.4689,2945.4,2945.0,6.86847146]
[1765952134234,0.4689,2945.4,2945.0,3.47288573]
[1765952135400,0.4505,2945.3,2945.0,3.39558573]
[1765952136082,0.4658,2945.1,2944.9,3.3976534]
[1765952136368,0.4505,2945.3,2944.9,0.002]
[1765952137060,0.38913132,2945.4,2944.9,0.002]
[1765952137061,0.4704,2945.4,2944.9,0.002]
[1765952137262,0.4704,2945.2,2944.9,0.002]
[1765952138534,3.39601525,2945.5,2944.9,0.002]
[1765952138535,0.001,2945.5,2945.4,0.0773]
[1765952138741,0.001,2945.5,2945.4,0.1546]
[1765952138938,0.001,2945.5,2945.4,0.16487714]
[1765952140760,0.001,2945.5,2945.4,3.56000174]
[1765952140964,0.001,2945.5,2945.4,4.61267389]
[1765952141471,0.001,2945.5,2945.4,8.17411892]
[1765952143074,0.001,2945.5,2945.4,12.19994418]
[1765952143284,0.001,2945.5,2945.4,12.60544818]
[1765952144346,0.001,2945.5,2945.4,9.04400315]
[1765952144763,0.001,2945.5,2945.4,5.48255812]
[1765952144968,0.001,2945.5,2945.4,9.04400315]
[1765952146584,0.001,2945.5,2945.4,4.99975412]
[1765952146747,0.001,2945.5,2945.4,4.56338197]
[1765952147212,0.001,2945.5,2945.4,8.124827]
[1765952149571,0.001,2945.5,2945.4,4.56338197]
[1765952150182,0.001,2945.5,2945.4,4.02170174]
[1765952150554,0.4658,2945.5,2945.4,3.3951246]
[1765952150855,0.4648,2945.4,2945.3,3.39522384]
[1765952151060,0.4648,2945.3,2945.2,3.39530195]
[1765952151255,0.4648,2945.3,2945.1,0.539]
[1765952151485,0.4704,2945.2,2944.9,0.002]
[1765952151686,0.4648,2945.0,2944.9,0.002]
[1765952152159,0.4704,2945.2,2944.9,0.002]
[1765952152494,0.4714,2945.5,2944.9,0.002]
[1765952152670,0.4704,2945.3,2944.9,0.002]
[1765952153284,0.8570346,2945.4,2944.9,0.002]
[1765952153763,0.001,2945.5,2945.3,0.0773]
[1765952154484,0.001,2945.5,2945.4,0.0773]
[1765952155290,0.001,2945.5,2945.4,0.1546]
[1765952155792,0.001,2945.5,2945.4,3.5497246]
[1765952155992,0.001,2945.5,2945.4,7.15539801]
[1765952156162,0.001,2945.5,2945.4,8.17753805]
[1765952158801,0.001,2945.5,2945.4,4.61609302]
[1765952162001,0.001,2945.5,2945.4,8.17753805]
[1765952163302,0.001,2945.5,2945.4,4.61609302]
[1765952169309,0.001,2945.5,2945.4,4.53879302]
[1765952169510,0.001,2945.5,2945.4,4.61609302]
[1765952171913,0.001,2945.5,2945.4,4.53879302]
[1765952172213,0.47,2945.5,2945.4,3.3951246]
[1765952172717,0.469,2945.4,2945.1,0.539]
[1765952172901,0.4557,2945.3,2945.0,3.39557901]
[1765952173210,0.4557,2945.3,2944.9,0.01227714]
[1765952174216,0.4557,2945.3,2944.9,0.002]
[1765952175987,0.9247,2945.0,2944.9,0.002]
[1765952176486,0.9176145,2945.0,2944.9,0.002]
[1765952176687,1.3733145,2945.0,2944.9,0.002]
[1765952177319,8.33034526,2945.0,2944.9,0.002]
[1765952177493,8.33410869,2945.0,2944.9,0.002]
[1765952178132,4.93852296,2945.0,2944.9,0.002]
[1765952178299,1.3733145,2945.0,2944.9,0.002]
[1765952178919,4.76890023,2945.0,2944.9,0.002]
[1765952179425,8.33410869,2945.0,2944.9,0.002]
[1765952182894,4.76890023,2945.0,2944.9,0.002]
[1765952183089,8.33410869,2945.0,2944.9,0.002]
[1765952183828,8.79848892,2945.0,2944.9,0.002]
[1765952184199,8.79848892,2945.0,2944.6,0.002]
[1765952184200,1.1207,2944.7,2944.6,0.002]
[1765952184399,0.9247,2944.5,2944.4,0.002]
[1765952184748,1.49362887,2944.5,2944.4,0.002]
[1765952187195,4.8897912,2944.5,2944.4,0.002]
[1765952187605,1.49362887,2944.5,2944.4,0.002]
[1765952188538,8.45499966,2944.5,2944.4,0.002]
[1765952189310,4.8897912,2944.5,2944.4,0.002]
[1765952189839,1.49362887,2944.5,2944.4,0.002]
[1765952190141,4.8897912,2944.5,2944.4,0.002]
[1765952190746,1.49362887,2944.5,2944.4,0.002]
[1765952190917,0.469,2944.5,2944.4,0.002]
[1765952192031,0.6517,2944.7,2944.4,0.002]
[1765952192264,0.469,2944.5,2944.4,0.002]
[1765952192542,0.9247,2944.5,2944.4,0.002]
[1765952193543,0.469,2944.5,2944.4,0.002]
[1765952193844,0.9247,2944.5,2944.4,0.002]
[1765952194045,1.37636485,2944.5,2944.4,0.002]
[1765952196444,0.9247,2944.5,2944.4,0.002]
[1765952200148,4.32086233,2944.5,2944.4,0.002]
[1765952201249,0.9247,2944.5,2944.4,0.002]
[1765952201648,4.32086233,2944.5,2944.4,0.002]
[1765952208554,0.4807,2943.8,2943.7,0.002]
[1765952208867,0.9586,2943.8,2943.7,0.002]
[1765952212171,1.39413621,2943.8,2943.7,0.002]
[1765952212334,0.9586,2943.8,2943.7,0.002]
[1765952212932,4.3555699,2943.8,2943.7,0.002]
[1765952213535,0.9586,2943.8,2943.7,0.002]
[1765952214662,0.46438023,2944.3,2943.7,0.002]
[1765952214830,3.39665895,2944.1,2943.7,0.002]
[1765952215162,0.4807,2943.8,2943.7,0.002]
[1765952215358,0.9586,2943.8,2943.7,0.002]
[1765952216135,0.4807,2943.8,2943.7,0.002]
[1765952216336,0.4779,2944.0,2943.7,0.0793]
[1765952216536,0.3874559,2943.9,2943.7,0.0793]
[1765952216856,0.4807,2943.8,2943.7,0.002]
[1765952217168,0.9586,2943.8,2943.7,0.002]
[1765952220169,0.3874559,2943.9,2943.7,0.002]
[1765952220473,0.4779,2944.1,2943.7,0.002]
[1765952221438,0.4779,2944.0,2943.7,0.002]
[1765952223851,0.4779,2944.2,2943.7,0.002]
[1765952224375,0.4807,2943.8,2943.7,0.002]
[1765952226593,0.4578,2944.0,2943.7,0.002]
[1765952229295,0.4593,2943.8,2943.7,0.002]
[1765952229594,0.9171,2943.8,2943.7,0.002]
[1765952230291,3.39643025,2944.3,2943.7,0.002]
[1765952230486,0.4578,2944.1,2943.7,0.002]
[1765952232593,0.4593,2943.8,2943.7,0.002]
[1765952234903,6.461,2944.4,2943.9,0.0773]
[1765952235208,0.001,2944.4,2943.9,0.1546]
[1765952235408,0.4588,2944.4,2943.9,0.0773]
[1765952236504,0.4593,2944.0,2943.7,0.01227714]
[1765952237001,0.4593,2944.0,2943.8,3.3969699]
[1765952237500,0.4578,2944.2,2943.8,3.3969699]
[1765952239901,0.4588,2944.4,2943.8,6.8712398]
[1765952240504,0.4588,2944.4,2943.8,3.4742699]
[1765952240697,0.4578,2944.3,2943.8,3.3969699]
[1765952241504,0.4578,2944.3,2943.7,6.79614151]
[1765952241701,0.001,2944.4,2943.9,0.0773]
[1765952242003,0.001,2944.4,2944.3,0.1546]
[1765952243805,0.001,2944.4,2944.3,3.55099303]
[1765952244008,0.001,2944.4,2944.3,4.26369735]
[1765952244375,0.001,2944.4,2944.3,4.18639735]
[1765952245312,0.001,2944.4,2944.3,3.47369303]
[1765952246211,0.001,2944.4,2944.3,3.55099303]
[1765952246414,0.001,2944.4,2943.9,4.22615329]
[1765952246415,0.4593,2944.0,2943.9,0.66038023]
[1765952246714,0.4578,2944.2,2943.9,3.39685451]
[1765952247010,0.9171,2943.8,2943.7,0.002]
[1765952248194,0.4593,2943.8,2943.7,0.002]
[1765952248386,0.9171,2943.8,2943.7,0.002]
[1765952248786,0.4578,2944.0,2943.7,0.0793]
[1765952249917,0.4593,2943.8,2943.7,0.002]
[1765952250106,0.9171,2943.8,2943.7,0.002]
[1765952251214,0.4578,2944.1,2943.7,0.002]
[1765952251513,0.4578,2944.3,2943.7,0.002]
[1765952251719,0.4578,2944.1,2943.7,0.002]
[1765952252216,0.4593,2943.8,2943.7,0.002]
[1765952252619,0.4578,2944.1,2943.7,0.002]
[1765952254401,0.91721281,2944.2,2943.7,0.01227714]
[1765952254606,0.4696,2943.8,2943.7,0.002]
[1765952256424,0.4778,2944.0,2943.7,0.002]
[1765952258824,0.951,2943.8,2943.7,0.002]
[1765952264533,0.951,2943.8,2943.6,0.002]
[1765952264534,0.951,2943.7,2943.6,0.002]
[1765952264733,1.74249618,2943.7,2943.6,0.002]
[1765952265324,2.28149618,2943.7,2943.6,0.002]
[1765952265523,1.74249618,2943.7,2943.6,0.002]
[1765952266817,5.13958148,2943.7,2943.6,0.002]
[1765952269359,5.67858148,2943.7,2943.6,0.002]
[1765952270052,1.74249618,2943.7,2943.6,0.002]
[1765952270224,2.28149618,2943.7,2943.6,0.002]
[1765952270424,0.951,2943.7,2943.6,0.002]
[1765952270821,4.3480853,2943.7,2943.6,0.002]
[1765952271350,7.91507718,2943.7,2943.6,0.002]
[1765952271955,4.3480853,2943.7,2943.6,0.002]
[1765952272131,7.91507718,2943.7,2943.6,0.002]
[1765952272542,13.1315543,2943.7,2943.6,0.002]
[1765952272836,13.1315543,2943.7,2942.5,0.002]
[1765952272837,0.951,2943.1,2942.5,0.002]
[1765952273152,1.1395,2942.8,2942.5,0.002]
[1765952273527,1.6785,2942.8,2942.5,0.002]
[1765952273728,3.02412861,2942.8,2942.5,0.002]
[1765952273953,5.54100446,2942.8,2942.5,0.002]
[1765952274547,5.00200446,2942.8,2942.5,0.002]
[1765952274948,1.1395,2942.8,2942.5,0.002]
[1765952275353,4.53762423,2942.8,2942.5,0.002]
[1765952277460,1.1395,2942.8,2942.5,0.002]
[1765952277658,0.951,2942.8,2942.5,0.002]
[1765952279484,0.4554,2942.8,2942.6,0.002]
[1765952279991,0.951,2942.8,2942.6,0.002]
[1765952282363,4.34912423,2942.8,2942.6,0.002]
[1765952282571,0.951,2942.8,2942.6,0.002]
[1765952282799,5.96375048,2942.8,2942.6,0.002]
[1765952282976,5.96375048,2942.8,2941.5,3.40154624]
[1765952282977,0.4554,2941.6,2941.5,3.40154624]
[1765952283181,0.6841,2941.8,2941.5,6.80117228]
[1765952283508,0.1885,2942.0,2941.5,6.80117228]
[1765952283711,0.4956,2942.3,2941.9,0.0813]
[1765952283890,0.4956,2942.3,2941.5,10.44946416]
[1765952284215,0.4956,2942.3,2941.5,5.14418823]
[1765952284514,0.4889,2942.1,2941.5,3.40154624]
[1765952284679,0.4889,2942.1,2941.5,6.88247228]
[1765952285004,0.4889,2942.3,2941.5,6.80117228]
[1765952285301,0.4889,2942.3,2941.5,3.40154624]
[1765952285503,0.4889,2942.2,2941.5,6.80117228]
[1765952285709,0.1885,2942.4,2941.6,0.0813]
[1765952285913,0.1923,2942.6,2941.9,3.64829188]
[1765952286073,0.4889,2942.8,2942.1,3.64829188]
[1765952286272,0.4889,2942.8,2942.1,0.0813]
[1765952286505,0.4889,2942.8,2942.2,3.39881721]
[1765952286716,0.4889,2942.8,2942.2,6.79763442]
[1765952287025,0.9675,2942.7,2942.6,0.002]
[1765952287230,1.76076415,2942.7,2942.6,0.002]
[1765952288516,8.72599574,2942.7,2942.6,0.002]
[1765952288982,9.19037597,2942.7,2942.6,0.002]
[1765952289186,9.72937597,2942.7,2942.6,0.002]
[1765952290039,0.9675,2941.8,2941.7,3.39933977]
[1765952290412,0.4786,2941.7,2941.5,3.94061719]
[1765952290607,0.4889,2942.0,2941.7,0.0813]
[1765952291836,0.6812,2942.1,2941.7,0.0813]
[1765952292336,0.4786,2941.8,2941.6,3.39951047]
[1765952292640,0.4786,2941.8,2941.6,6.79902094]
[1765952292818,0.4889,2942.0,2941.6,6.79902094]
[1765952293143,0.1923,2942.1,2941.6,6.79902094]
[1765952293437,0.1923,2942.1,2941.6,6.88032094]
[1765952293649,0.4889,2942.0,2941.6,6.80102094]
[1765952293936,0.6812,2942.1,2941.6,6.80102094]
[1765952294636,0.4889,2942.6,2941.9,3.64829188]
[1765952294836,0.4889,2942.6,2941.6,6.80102094]
[1765952295012,0.4889,2942.5,2941.6,6.80102094]
[1765952296139,0.4889,2942.4,2941.6,6.80102094]
[1765952299043,0.4889,2942.4,2941.7,0.0813]
[1765952300267,0.4889,2942.4,2941.8,6.7985587]
[1765952302345,0.4889,2942.4,2941.6,3.40139858]
[1765952302346,0.4889,2942.3,2941.6,3.40139858]
[1765952302540,0.4889,2942.3,2941.8,0.002]
[1765952306479,0.001,2942.8,2942.2,3.56699188]
[1765952306691,0.4899,2942.8,2942.0,0.0813]
[1765952306985,0.4889,2942.6,2942.0,3.39904826]
[1765952307150,0.9675,2942.1,2942.0,3.39904826]
[1765952308793,0.4786,2942.1,2942.0,3.39904826]
[1765952309345,0.9675,2942.1,2942.0,3.39904826]
[1765952309558,0.4786,2942.0,2941.9,3.93811162]
[1765952309987,3.39840852,2942.6,2941.9,3.93811162]
[1765952310195,0.4889,2942.4,2941.9,3.93811162]
[1765952310566,0.4786,2942.0,2941.9,3.93811162]
[1765952311475,0.9675,2942.0,2941.9,3.93811162]
[1765952311678,0.38627888,2942.5,2941.9,7.41857542]
[1765952311976,0.38627888,2942.5,2941.9,7.49987542]
[1765952312146,0.4889,2942.5,2941.9,7.49987542]
[1765952312348,0.4889,2942.5,2941.9,7.41857542]
[1765952313359,0.4889,2942.5,2941.9,4.01941162]
[1765952313562,0.4889,2942.4,2941.9,4.01941162]
[1765952313762,0.4889,2942.4,2941.9,7.41857542]
[1765952315382,0.4879,2942.6,2941.9,8.25006296]
[1765952315577,0.4879,2942.6,2941.9,7.49987542]
[1765952316368,0.4533,2942.5,2941.9,7.41857542]
[1765952320407,0.4533,2942.5,2941.9,7.49987542]
[1765952320811,0.001,2942.6,2942.5,0.0813]
[1765952322379,0.001,2942.6,2942.5,3.47977068]
[1765952323883,0.4948,2942.6,2942.5,3.47977068]
[1765952324078,0.4948,2942.6,2942.5,3.39847068]
[1765952325813,0.4948,2942.6,2942.4,3.39858618]
[1765952326007,0.4543,2942.6,2942.4,3.39858618]
[1765952326356,0.4543,2942.6,2941.9,4.02283653]
[1765952326357,1.1343,2941.9,2941.8,0.002]
[1765952331110,1.58762883,2941.9,2941.8,0.002]
[1765952333124,1.1343,2941.9,2941.8,0.002]
[1765952333682,3.9377415,2942.3,2941.8,0.002]
[1765952333881,0.4938,2941.9,2941.8,0.002]
[1765952334333,3.53471266,2942.5,2941.8,0.0833]
[1765952334334,0.4533,2942.5,2941.8,0.0833]
[1765952334816,0.4938,2941.9,2941.8,0.002]
[1765952334977,0.681,2941.9,2941.8,0.002]
[1765952337228,1.1343,2941.9,2941.8,0.002]
[1765952338716,0.4938,2941.9,2941.8,0.002]
[1765952339712,0.9471,2941.9,2941.8,0.002]
[1765952341412,1.40044095,2941.9,2941.8,0.002]
[1765952343121,0.9471,2941.9,2941.8,0.002]
[1765952343545,4.3462638,2941.9,2941.8,0.002]
[1765952343744,0.9471,2941.9,2941.8,0.002]
[1765952347038,0.1872,2942.1,2941.8,0.002]
[1765952347039,0.6386,2942.1,2941.8,0.002]
[1765952347430,0.1872,2942.1,2941.8,0.002]
[1765952347820,0.6386,2942.1,2941.8,0.002]
[1765952349251,0.1872,2942.1,2941.8,0.002]
[1765952349447,0.4514,2942.0,2941.8,0.002]
[1765952349748,0.4884,2941.9,2941.8,0.002]
[1765952349926,0.9398,2941.9,2941.8,0.002]
[1765952350420,1.39239499,2941.9,2941.8,0.002]
[1765952351127,0.4884,2941.9,2941.8,0.002]
[1765952351453,0.9398,2941.9,2941.8,0.002]
[1765952352551,0.4514,2942.3,2941.8,0.002]
[1765952353525,3.39871327,2942.3,2941.8,0.002]
[1765952353721,1.1272,2941.9,2941.8,0.002]
[1765952355228,1.57982193,2941.9,2941.8,0.002]
[1765952355953,0.4884,2941.9,2941.8,0.002]
[1765952356151,0.4514,2942.1,2941.8,0.002]
[1765952356330,0.4884,2941.9,2941.8,0.002]
[1765952356823,0.9398,2941.9,2941.8,0.002]
[1765952357224,1.47310614,2942.5,2942.0,0.0813]
[1765952357430,0.4514,2942.4,2942.0,0.0813]
[1765952357828,0.83647821,2942.4,2942.0,0.0813]
[1765952358044,0.4514,2942.3,2941.8,0.541]
[1765952358439,0.4524,2942.6,2941.9,0.0813]
[1765952358747,0.4524,2942.6,2941.8,0.541]
[1765952358927,0.4524,2942.6,2941.9,6.7983276]
[1765952359130,0.4524,2942.6,2941.9,7.97864401]
[1765952359325,0.4524,2942.6,2942.0,3.65083653]